Cogmind - Beta 15 @@@ ROGUE MODE // 2025.06.01 @ 15:36:02 Player: Nisakard Result: Destroyed by P5-5PJ(R) with Subdweller Machine Gun Performance ------------- Evolutions (0) 0 Regions Visited (2) 400 Robots Destroyed (14) 70 Value Destroyed (270) 270 Prototype IDs (0) 0 Alien Tech Used (0) 0 Bonus (0) 0 TOTAL SCORE: 740 Bonus ------- None Cogmind --------- Core Integrity 0/250 Matter 290/300 Energy 200/200 System Corruption 0% Temperature Cool (0) Movement Hovering (56) Location -10/Subcaves Parts ------- > --- POWER (1) -------- Subdweller Power Source > --- PROPULSION (2) --- Improved Hover Unit Improved Hover Unit > --- UTILITY (2) ------ Small Storage Unit > --- WEAPON (2) ------- Mining Claw Mining Claw > --- INVENTORY (8) ---- Light Ion Engine Improved Ion Engine Subdweller Monowheel Improved Hover Unit Flight Unit Medium Storage Unit Datajack Mining Claw Peak State ------------ > --- POWER ------------ Light Nuclear Core > --- PROPULSION ------- Improved Hover Unit Improved Hover Unit > --- UTILITY ---------- Small Storage Unit Large Storage Unit > --- WEAPON ----------- Mining Claw Mining Claw > --- INVENTORY -------- Improved Ion Engine Improved Ion Engine Improved Hover Unit Improved Hover Unit High-capacity Battery EM Pulse Gun Mining Claw [Rating: 12] Favorites ----------- Power Light Nuclear Core Engine Ion Engine Power Core Light Nuclear Core Propulsion Light Treads Treads Light Treads Hover Unit Improved Hover Unit Flight Unit Flight Unit Utility Terrain Scanner Device Terrain Scanner Storage Small Storage Unit Weapon Mining Claw Energy Gun EM Pulse Gun Ballistic Gun Assault Rifle Slashing Weapon Mining Claw Build | -11 -10 -10 ------- Run | Yrd Mat Sub Slots Evolved . | . . . Power . | . . . Propulsion . | . . . Utility . | . . . Weapon . | . . . Parts Attached 22 | 7 10 5 Power 5 | 1 2 2 Engine 4 | 1 1 2 Core 1 | . 1 . Reactor . | . . . Propulsion 7 | 2 2 3 Treads 2 | 2 . . Leg . | . . . Wheel . | . . . Hover 4 | . 2 2 Flight 1 | . . 1 Utility 5 | 1 4 . Device 1 | . 1 . Storage 4 | 1 3 . Processor . | . . . Hackware . | . . . Protection . | . . . Artifact . | . . . Weapon 5 | 3 2 . Energy Gun 1 | 1 . . Energy Cannon . | . . . Ballistic Gun 2 | 2 . . Ballistic Cannon . | . . . Launcher . | . . . Special Weapon . | . . . Impact Weapon . | . . . Slashing Weapon 2 | . 2 . Piercing Weapon . | . . . Special Melee Weapon . | . . . Unidentified Prototypes . | . . . Parts Lost 2 | . . 2 Power 1 | . . 1 Propulsion 1 | . . 1 Utility . | . . . Weapon . | . . . Highest Loss Streak 1 | . . 1 To Critical Strikes . | . . . Average Backups 8 | 3 9 7 Power 2 | . 2 1 Propulsion 3 | 1 3 2 Utility 1 | . 1 1 Weapon 1 | . 2 1 Tool/Special . | . . . Unused Backups 15 | . 9 6 Power 5 | . 4 1 Propulsion 5 | . 4 1 Utility 3 | . 1 2 Weapon 1 | . . 1 Tool/Special 1 | . . 1 Average Slot Usage (%) 93 | . 96 84 Engine 5 | . 5 6 Core 8 | . 8 7 Treads 18 | . 23 . Hover 9 | . 4 27 Device 8 | . 11 . Storage 14 | . 14 14 Ballistic Gun 18 | . 23 . Slashing Weapon 9 | . 4 28 Peak Build Rating 12 | 6 12 11 Average Rating 9 | 5 9 10 On Entrance 5 | . 6 11 Naked Turns . | . . . Heaviest Build 29 | 14 29 14 Greatest Support 40 | 40 40 14 Greatest Overweight (x) 2 | . 2 1 Average Overweight (x) . | . . . Largest Inventory Capacity 15 | 8 15 8 Average Capacity 10 | 7 11 8 Most Carried 14 | 4 14 8 Average Carried 8 | 3 9 7 Final Capacity 8 | 8 8 8 Final Carried 8 | 4 8 8 Class Distribution -------------------- 100% | Mutant Dominant Class ---------------- Mutant | -10/Materials Mutant | -10/Subcaves Resources | -11 -10 -10 ----------- Run | Yrd Mat Sub Matter Collected 588 | 286 262 40 Remotely . | . . . Salvage Created 447 | 89 264 94 Parts 31 | 5 17 9 Haulers Intercepted 1 | . 1 . Recyclers Shooed . | . . . Parts Field Recycled . | . . . Retrieved Matter . | . . . Parts Self-Destructed 7 | . . 7 Prevented . | . . . Kills | -11 -10 -10 ------- Run | Yrd Mat Sub Combat Hostiles Destroyed 10 | . 5 5 Melee 5 | . . 5 Guns 5 | . 5 . Classes Destroyed 7 | 2 4 1 Tunneler 1 | 1 . . Hauler 1 | . 1 . Recycler 1 | 1 . . Watcher 1 | . 1 . Swarmer 5 | . 1 4 Grunt 4 | . 4 . Subdweller 1 | . . 1 Best Kill Streak 4 | 2 2 4 Combat Bots Only 4 | . 2 4 Max Kills in Single Turn 1 | 1 1 1 Gunslinging . | . . . Exploded . | . . . Melee 1 | . . 1 Uniques/NPCs Destroyed . | . . . Combat | -11 -10 -10 -------- Run | Yrd Mat Sub Hostile Shots Fired 73 | . 25 48 Missed 21 | . 8 13 Hits 52 | . 17 35 Projectile 52 | . 17 35 Damage Taken 806 | . 271 535 Core 259 | . 11 248 Absorbed by Shields . | . . . Regen/Repaired (Parts) 21 | . 21 . Core Remaining (%) 100 | 100 . . Volleys Fired 42 | 4 38 . Largest 2 | 2 2 . Hottest 40 | 40 40 . Shots Fired 84 | 8 76 . Gun 84 | 8 76 . Cannon . | . . . Launcher . | . . . Special . | . . . Kinetic 84 | 8 76 . Thermal . | . . . Explosive . | . . . Electromagnetic . | . . . Robot Hit Streak 6 | 3 6 . Robot Miss Streak 5 | 5 4 . Penetration Max . | . . . Secondary Targets 1 | . 1 . Max Gunslinging Chain 1 | . 1 . Shots Hit Robots 63 | 3 40 20 Core Hits 25 | 2 17 6 Critical Kills . | . . . Critical Parts Destroyed . | . . . Critical Strikes . | . . . Melee Attacks 61 | . 28 33 Impact . | . . . Slashing 61 | . 28 33 Piercing . | . . . Sneak Attacks . | . . . Combat Hostiles . | . . . Follow-up Attacks 2 | . . 2 Damage Inflicted 913 | 35 404 474 Guns 439 | 35 404 . Cannons . | . . . Explosions . | . . . Melee 474 | . . 474 Ramming . | . . . Kinetic 439 | 35 404 . Thermal . | . . . Explosive . | . . . Electromagnetic . | . . . Impact . | . . . Slashing 474 | . . 474 Piercing . | . . . Highest Corruption . | . . . Average Corruption . | . . . Corruption Purged . | . . . Corruption Blocked . | . . . Overload Shots . | . . . Overflow Damage 5 | . . 5 Projectiles . | . . . Explosions . | . . . Melee 5 | . . 5 Knockbacks . | . . . Impact . | . . . Kinetic . | . . . Secondary . | . . . Self-Inflicted Damage . | . . . Shots . | . . . Rammed . | . . . Targets Rammed . | . . . Kicked . | . . . Crushed . | . . . Highest Temperature 24 | . 24 . Average Temperature 5 | . 5 . Received Heat Transfer 198 | . 132 66 Siege Activations . | . . . Martial Activations . | . . . Shielding Activations . | . . . Robots Disrupted . | . . . Combat Hostiles . | . . . Robots Corrupted . | . . . Combat Hostiles . | . . . Parts Fried . | . . . Impact Corruptions . | . . . Robots Melted . | . . . Combat Hostiles . | . . . Parts Melted . | . . . Heat Transferred . | . . . Parts Sabotaged . | . . . Parts Stolen . | . . . Parts Stripped . | . . . Power Chain Reactions . | . . . Alert | -11 -10 -10 ------- Run | Yrd Mat Sub Maximum Alert Level . | . . . Low Security (%) 100 | 100 100 . Level 1 . | . . . Level 2 . | . . . Level 3 . | . . . Level 4 . | . . . Level 5 . | . . . High Security . | . . . Max Security . | . . . Peak Influence 42 | 10 42 . Initial . | . . . Average 3 | . 4 . Influence Increases 329 | 10 164 155 Destroy 0b10 Robot/C 180 | . 100 80 Destroy 0b10 Robot/NC 20 | 10 10 . Destroy Leader 24 | . 24 . Successful Hack 13 | . 13 . Destroy Structure 2 | . 2 . Partial Spotted 15 | . 15 . Lose Combat Pursuer 75 | . . 75 Influence Decreases 310 | 10 153 147 Entered New Map 6 | . . 6 Time Decay 284 | 10 153 121 Lost Part 20 | . . 20 Squads Dispatched 2 | . 2 . Investigation 2 | . 2 . Extermination . | . . . Reinforcement . | . . . Assault . | . . . Garrison . | . . . Intercept . | . . . Searches Triggered . | . . . Construction Impeded . | . . . Haulers Reinforced . | . . . Active Scanning Responses . | . . . Cargo Convoy Interrupts . | . . . Stealth | -11 -10 -10 --------- Run | Yrd Mat Sub Distress Signals . | . . . Communications Jammed . | . . . Distress Signals . | . . . Times Spotted 23 | . 10 13 Peak Tracking Total 6 | . 2 6 Tactical Retreats 3 | . . 3 Traps | -11 -10 -10 ------- Run | Yrd Mat Sub Traps Triggered 4 | . 3 1 Indirectly . | . . . Trap Hack Attempts . | . . . Triggered . | . . . Disarmed . | . . . Reprogrammed . | . . . Reused . | . . . Traps Extracted . | . . . Installed . | . . . Triggered . | . . . Machines | -11 -10 -10 ---------- Run | Yrd Mat Sub Machines Disabled . | . . . Max in Single Turn . | . . . Machines Repaired . | . . . Machines Dismantled . | . . . Machines Sabotaged . | . . . Overloaded Fab Kills . | . . . Hacking | -11 -10 -10 --------- Run | Yrd Mat Sub Machines Accessed 8 | . 8 . Terminals 5 | . 5 . Fabricators . | . . . Repair Stations 1 | . 1 . Recycling Units 2 | . 2 . Scanalyzers . | . . . Garrison Access . | . . . Total Hacks 22 | . 22 . Successful 8 | . 8 . Failed 14 | . 14 . Catastrophic 1 | . 1 . Database Lockouts . | . . . Manual 11 | . 11 . Terminals 14 | . 14 . Fabricators . | . . . Repair Stations 3 | . 3 . Recycling Units 5 | . 5 . Scanalyzers . | . . . Garrison Access . | . . . Terminal Hacks 3 | . 3 . Robot Analysis 1 | . 1 . Unreport Threat 1 | . 1 . Locate Traps 1 | . 1 . Fabricator Hacks . | . . . Repair Station Hacks 2 | . 2 . Scan Component 1 | . 1 . Repair 1 | . 1 . Recycling Unit Hacks 3 | . 3 . Report Inventory 2 | . 2 . Retrieve Components 1 | . 1 . Scanalyzer . | . . . Garrison Access Hacks . | . . . Unauthorized Hacks . | . . . Terminals . | . . . Fabricators . | . . . Repair Stations . | . . . Recycling Units . | . . . Scanalyzers . | . . . Garrison Access . | . . . Data Cores Recovered . | . . . Used . | . . . Hacking Detections 7 | . 7 . Full Trace Events . | . . . Feedback Events . | . . . Feedback Blocked . | . . . Robot Schematics Acquired . | . . . Robots Built . | . . . Authchips . | . . . Time . | . . . Total Robot Build Rating . | . . . Part Schematics Acquired . | . . . Parts Built . | . . . Authchips . | . . . Time . | . . . Total Part Build Rating . | . . . Parts Repaired 1 | . 1 . Time 38 | . 38 . Parts Recycled . | . . . Recycled Matter . | . . . Retrieved Matter . | . . . Retrieved Components 10 | . 10 . Parts Scanalyzed . | . . . Part Schematics Acquired . | . . . Parts Damaged . | . . . Bothacking | -11 -10 -10 ------------ Run | Yrd Mat Sub Used RIF Installer . | . . . Robots Hacked . | . . . Non-combat . | . . . Combat . | . . . Robot Hacks Applied . | . . . Relay Couplers Released . | . . . Fabnet Peak Effective % . | . . . Robots Rewired . | . . . Allies Hacked . | . . . Hacks Repelled . | . . . Allies | -11 -10 -10 -------- Run | Yrd Mat Sub Total Allies . | . . . Largest Group . | . . . Highest-Rated Group . | . . . Highest-Rated Ally . | . . . Total Orders . | . . . Ally Attacks . | . . . Total Damage . | . . . Kills . | . . . Allies Corrupted . | . . . Allies Melted . | . . . Intel | -11 -10 -10 ------- Run | Yrd Mat Sub Active Infowar (turns) 1162 | . 1162 . Terrain 1162 | . 1162 . Robot Analysis Total 1 | . 1 . Derelict Logs Recovered . | . . . Drone Launches . | . . . Drone Recoveries . | . . . Exploration | -11 -10 -10 ------------- Run | Yrd Mat Sub Turns Passed 1983 | 121 1423 439 Spaces Moved 1413 | 56 817 540 Core 2 | 2 . . Treads 647 | 54 593 . Legs . | . . . Wheels . | . . . Hover 764 | . 224 540 Flight . | . . . Fastest Speed 50 | 50 56 56 Average Speed 103 | 156 131 56 Slowest Speed 176 | 160 176 120 Overloaded Moves . | . . . Propulsion Burnouts . | . . . Robots Hopped . | . . . Potential Cave-ins . | . . . Cave-ins Triggered . | . . . Exploration Rate (%) 42 | 6 83 38 Regions Visited 2 Branch Regions 1 Pre-discovered Areas . | . . . Known Exits Taken . | . . . Unknown Exits Taken 2 | 1 1 . Scrap Searched . | . . . Spaces Dug 3 | . 3 . Terrain Destroyed 3 | . 3 . Melee 3 | . 3 . Projectile . | . . . AOE . | . . . Terrain Rammed . | . . . Walls Destroyed . | . . . Machines Disabled . | . . . Actions | -11 -10 -10 --------- Run | Yrd Mat Sub Total 1747 | 79 1050 618 Wait 173 | 9 124 40 Move 1411 | 55 816 540 Hop . | . . . Pick Up 25 | 4 18 3 Fast Attach 9 | 6 3 . Attach 4 | . 2 2 Detach . | . . . Swap 10 | 1 6 3 Drop 22 | . 20 2 Fire 42 | 4 38 . Melee 51 | . 23 28 Ram . | . . . Kick . | . . . Crush . | . . . Escape Stasis . | . . . Rewire . | . . . Trap . | . . . Miscellaneous . | . . . Route ------- -11/Scrapyard -10/Materials (discovered 6 exits: [*Mat x3] / [*Min x2] / [*Sub]) -10/Subcaves (discovered 1 exit: [*Rec]) History --------- Turn | Location | Event 10 | -11/Scrapyard | Discovered new exit (range 15) 122 | -11/Scrapyard | Entered Materials 143 | -10/Materials | Discovered new exit (range 9) 205 | -10/Materials | Met 8R-AWN 305 | -10/Materials | Build established: Mutant 534 | -10/Materials | Discovered new exit (range 16) 701 | -10/Materials | Discovered new exit (range 5) 1105 | -10/Materials | Repaired Lgt. Nuclear Core 1193 | -10/Materials | Discovered new exit (range 13) 1528 | -10/Materials | Discovered new exit (range 14) 1531 | -10/Materials | Discovered new exit (range 12) 1545 | -10/Materials | Entered Subcaves 1546 | -10/Subcaves | Approached by a straggling Scientist 1740 | -10/Subcaves | Discovered new exit (range 15) 1968 | -10/Subcaves | Ambushed by Subdweller buried in earth 1969 | -10/Subcaves | Core integrity fell below 50% 1981 | -10/Subcaves | Core integrity fell below 20% 1984 | -10/Subcaves | Destroyed by P5-5PJ(R) with Subdweller Machine Gun Last Messages --------------- 01882_ Subatomizers dissect the Wheel. 01889_ XX-6GH(R): "WEHOME!" 01908_ Subatomizers dissect the Wheel. 01918_ Imp. Hover Unit destroyed. 01919_ Subatomizers dissect the Wheel. 01923_ XX-6GH(R) destroyed. Flying robots can pass through spaces occupied by others, even hostile robots. 01932_ Acquired 30 matter. 01933_ Acquired Sub. Monowheel. 01935_ Dropped Lgt. Ion Engine. 01937_ Dropped Hcp. Battery. 01937_ Acquired Lgt. Ion Engine. 01948_ Subatomizers dissect the Wheel. 01968_ Triggered Shrapnel Trap. 01968_ An expanding cloud of shrapnel blasts out in all directions. 01969_ P5-5PJ(R): "ARGHSUB!" 01972_ Mining Claw follow-up attack on P5-5PJ(R). Map ----- +----------------------------------------------------+ | # """"" ?????????????????????????????????? | | # """ #???????????????????????????????????? | | # ##????????????????????????????????????? | | # ##????????????????????????????????????? | | ## ##???????????????????????????????????? | | ?# #???????????????????????????????????? | | ??# ## #?????###???????????????????????????? | | ??## ### #????## ###?????????????????????????? | | ???####?# ##?#### #?????????????????????????? | | ????????# #### #?????????????????????????? | | ???????## ## #??????????????????????????? | | ???????# #??????????????????????????? | | #####??????????????????????? | | ## #????? ???????????????? | | ## # ####?## #???? #???????????????? | | ???###??????# ###???? #???????????????? | | ????????????# ##????? ????????????????? | | ????????????## ##????# ?????????????????? | | ?????? ?????## ## #???? ??????????????????? | | ???? ## ### ##??? #??????????????????? | | ???? # #???# #??????????????????? | | ??????????# ##??# ##?????????????????? | | ??????????## ###### ####; #?????????????????? | | ???????????##????# ## ;; #??????????????????? | | ?????????????????# #;;R ##???????????????????? | | ?????????????????## @ ;#???????????????????? | | ??????????????????# ;#???????????????????? | | ??????????????????####; ;;#???????????????????? | | ?????????????????????##;;;;;##???????????????????? | | ??????????????????????#######????????????????????? | | ?????????????????????????????????????????????????? | | ?????????????????????????????????????????????????? | | ?????????????????????????????????????????????????? | | ?????????????????????????????????????????????????? | | ?????????????????????????????????????????????????? | | ?????????????????????????????????????????????????? | | ?????????????????????????????????????????????????? | | ?????????????????????????????????????????????????? | | ?????????????????????????????????????????????????? | | ?????????????????????????????????????????????????? | | ?????????????????????????????????????????????????? | | ?????????????????????????????????????????????????? | | ?????????????????????????????????????????????????? | | | | | | | | | | | | | | | +----------------------------------------------------+ Best States ------------- Heat Dissipation 25 Energy Generation 15 Energy Capacity 250 Matter Stores 300 Matter Capacity 300 Sight Range 16 Terrain Scan Range 14 Terrain Scan Density 10 Evasion (%) 53 Recoil Reduction 2 Item Schematics ----------------- None Robot Schematics ------------------ None Fabricated ------------ Nothing Repaired ---------- Lgt. Nuclear Core | 58% | -10/Materials Alien Tech Used ----------------- None Achievements -------------- None Challenges ------------ None Game ------ Seed FieldthrustModifiedMapper Manual? 0 Play Time 00:16:09 Cumulative 4.8 hours Start 2025.06.01 @ 15:20:30 End 2025.06.01 @ 15:36:02 Sessions 1 Manual Loads 0 Difficulty Rogue Special Mode None Game No. 10 Rogue 10 Adventurer 0 Explorer 0 Win Type - Total 0 Types 0/0/0/0/0/0/0/0/0/0 Lore% 16 Gallery% 8 Achievement% 22 Wizard Run 0 Options --------- Layout 1 ASCII 0 Keyboard 0 Movement Numpad Keybinds 0 Fullscreen 2 Font 24/Smallcaps Map View 50x35 Zoom Use 0% Tactical HUD 1 Map Filters NONE Filters NONE Steam 1 RUN: c8dadffc-d5d5-4d70-ac33-cbf6fd9348e1